[Event "Titled Tuesday Blitz November 29 Late 2022"]
[White "O`Gorman, Tom"]
[Black "Putnam, Liam"]
[WhiteFideId "2508249"]
[BlackFideId "30938279"]
[WhiteElo "2271"]
[BlackElo "2082"]
[Result "1/2-1/2"]
[Round "09"]
[TimeControl "180+1"]
[Date "2022.11.30"]
[WhiteClock "0:00:52"]
[BlackClock "0:00:28"]

1. d4 {[%clk 0:03:00]}  Nf6 {[%clk 0:02:59]} 2. c4 {[%clk 0:03:00]}  g6 {[%clk 0:02:58]} 3. Nf3 {[%clk 0:02:59]}  Bg7 {[%clk 0:02:58]} 4. g3 {[%clk 0:03:00]}  O-O {[%clk 0:02:59]} 5. Bg2 {[%clk 0:03:00]}  d5 {[%clk 0:02:59]} 6. O-O {[%clk 0:02:59]}  Nc6 {[%clk 0:02:59]} 7. cxd5 {[%clk 0:02:50]}  Nxd5 {[%clk 0:03:00]} 8. e4 {[%clk 0:02:50]}  Nb6 {[%clk 0:03:00]} 9. d5 {[%clk 0:02:50]}  Na5 {[%clk 0:03:01]} 10. Nc3 {[%clk 0:02:44]}  c6 {[%clk 0:03:00]} 11. Re1 {[%clk 0:02:36]}  Nac4 {[%clk 0:02:53]} 12. Qe2 {[%clk 0:02:32]}  Bg4 {[%clk 0:02:47]} 13. h3 {[%clk 0:02:29]}  Bxf3 {[%clk 0:02:47]} 14. Bxf3 {[%clk 0:02:29]}  Qc8 {[%clk 0:02:40]} 15. Bg2 {[%clk 0:02:28]}  Rd8 {[%clk 0:02:39]} 16. Bg5 {[%clk 0:02:20]}  Re8 {[%clk 0:02:29]} 17. Rac1 {[%clk 0:02:17]}  h6 {[%clk 0:02:21]} 18. Bf4 {[%clk 0:02:16]}  g5 {[%clk 0:02:20]} 19. Be3 {[%clk 0:02:16]}  Nxe3 {[%clk 0:02:17]} 20. Qxe3 {[%clk 0:02:16]}  Qd7 {[%clk 0:02:07]} 21. dxc6 {[%clk 0:02:08]}  bxc6 {[%clk 0:02:08]} 22. e5 {[%clk 0:02:07]}  Nc4 {[%clk 0:01:56]} 23. Qe2 {[%clk 0:02:05]}  Nxe5 {[%clk 0:01:55]} 24. Red1 {[%clk 0:02:00]}  Qf5 {[%clk 0:01:47]} 25. Ne4 {[%clk 0:01:44]}  Rad8 {[%clk 0:01:44]} 26. b3 {[%clk 0:01:43]}  Rd5 {[%clk 0:01:32]} 27. Nc5 {[%clk 0:01:36]}  Rxd1+ {[%clk 0:01:24]} 28. Rxd1 {[%clk 0:01:37]}  e6 {[%clk 0:00:59]} 29. Nd7 {[%clk 0:01:30]}  Nxd7 {[%clk 0:00:43]} 30. Rxd7 {[%clk 0:01:31]}  a5 {[%clk 0:00:39]} 31. Bxc6 {[%clk 0:01:27]}  Qxh3 {[%clk 0:00:35]} 32. Qf3 {[%clk 0:01:18]}  Rf8 {[%clk 0:00:33]} 33. Be4 {[%clk 0:01:18]}  f5 {[%clk 0:00:30]} 34. Bd3 {[%clk 0:01:12]}  Qg4 {[%clk 0:00:23]} 35. Qxg4 {[%clk 0:01:09]}  fxg4 {[%clk 0:00:23]} 36. Bc4 {[%clk 0:01:09]}  Re8 {[%clk 0:00:24]} 37. Be2 {[%clk 0:01:06]}  h5 {[%clk 0:00:24]} 38. Bd3 {[%clk 0:01:05]}  Rc8 {[%clk 0:00:19]} 39. Bc4 {[%clk 0:01:04]}  Rc6 {[%clk 0:00:18]} 40. Re7 {[%clk 0:01:02]}  Bf6 {[%clk 0:00:16]} 41. Rxe6 {[%clk 0:01:01]}  Rxe6 {[%clk 0:00:17]} 42. Bxe6+ {[%clk 0:01:02]}  Kg7 {[%clk 0:00:17]} 43. Kg2 {[%clk 0:01:02]}  Bd4 {[%clk 0:00:17]} 44. Kf1 {[%clk 0:01:01]}  Kf6 {[%clk 0:00:17]} 45. Bd7 {[%clk 0:01:00]}  Kg6 {[%clk 0:00:18]} 46. Be8+ {[%clk 0:01:00]}  Kh6 {[%clk 0:00:18]} 47. Bd7 {[%clk 0:01:00]}  Bc5 {[%clk 0:00:18]} 48. Ke2 {[%clk 0:01:00]}  Ba3 {[%clk 0:00:18]} 49. Kd3 {[%clk 0:00:59]}  Kg7 {[%clk 0:00:18]} 50. Be6 {[%clk 0:00:55]}  Kf6 {[%clk 0:00:18]} 51. Bd7 {[%clk 0:00:55]}  Bb4 {[%clk 0:00:16]} 52. Ke2 {[%clk 0:00:54]}  Ke5 {[%clk 0:00:15]} 53. f3 {[%clk 0:00:49]}  gxf3+ {[%clk 0:00:12]} 54. Kxf3 {[%clk 0:00:50]}  g4+ {[%clk 0:00:12]} 55. Kg2 {[%clk 0:00:48]}  Be7 {[%clk 0:00:09]} 56. Be8 {[%clk 0:00:47]}  h4 {[%clk 0:00:09]} 57. gxh4 {[%clk 0:00:48]}  Bxh4 {[%clk 0:00:10]} 58. Bd7 {[%clk 0:00:48]}  g3 {[%clk 0:00:10]} 59. Kf3 {[%clk 0:00:48]}  Kd4 {[%clk 0:00:10]} 60. a3 {[%clk 0:00:46]}  Kc3 {[%clk 0:00:05]} 61. b4 {[%clk 0:00:46]}  axb4 {[%clk 0:00:06]} 62. axb4 {[%clk 0:00:47]}  Kxb4 {[%clk 0:00:07]} 63. Kg2 {[%clk 0:00:47]}  Kc5 {[%clk 0:00:07]} 64. Bh3 {[%clk 0:00:46]}  Kd4 {[%clk 0:00:08]} 65. Bg4 {[%clk 0:00:46]}  Ke5 {[%clk 0:00:09]} 66. Bh3 {[%clk 0:00:47]}  Kf4 {[%clk 0:00:10]} 67. Bc8 {[%clk 0:00:47]}  Bg5 {[%clk 0:00:10]} 68. Bh3 {[%clk 0:00:44]}  Bf6 {[%clk 0:00:11]} 69. Bc8 {[%clk 0:00:45]}  Be7 {[%clk 0:00:12]} 70. Bh3 {[%clk 0:00:45]}  Bd8 {[%clk 0:00:13]} 71. Bc8 {[%clk 0:00:46]}  Bc7 {[%clk 0:00:14]} 72. Bh3 {[%clk 0:00:46]}  Bb6 {[%clk 0:00:15]} 73. Bc8 {[%clk 0:00:46]}  Ba5 {[%clk 0:00:16]} 74. Bh3 {[%clk 0:00:47]}  Bb4 {[%clk 0:00:17]} 75. Bc8 {[%clk 0:00:47]}  Ba3 {[%clk 0:00:18]} 76. Bh3 {[%clk 0:00:48]}  Bb2 {[%clk 0:00:18]} 77. Bc8 {[%clk 0:00:48]}  Ba1 {[%clk 0:00:19]} 78. Bh3 {[%clk 0:00:48]}  Be5 {[%clk 0:00:20]} 79. Bc8 {[%clk 0:00:49]}  Kg5 {[%clk 0:00:21]} 80. Bh3 {[%clk 0:00:49]}  Kg6 {[%clk 0:00:22]} 81. Bc8 {[%clk 0:00:49]}  Kf6 {[%clk 0:00:23]} 82. Bh3 {[%clk 0:00:49]}  Kg7 {[%clk 0:00:24]} 83. Bc8 {[%clk 0:00:50]}  Kf7 {[%clk 0:00:25]} 84. Bh3 {[%clk 0:00:50]}  Kf8 {[%clk 0:00:26]} 85. Bc8 {[%clk 0:00:50]}  Ke7 {[%clk 0:00:27]} 86. Bh3 {[%clk 0:00:51]}  Kd8 {[%clk 0:00:27]} 87. Bg4 {[%clk 0:00:51]}  Kc7 {[%clk 0:00:28]} 88. Bh3 {[%clk 0:00:51]}  Bd6 {[%clk 0:00:28]} 89. Bg4 {[%clk 0:00:52]} 1/2-1/2


[Site "https://www.chess.com"]

[Event "Titled Tuesday Blitz November 29 Late 2022"]
[White "Pakleza, Zbigniew"]
[Black "Kuzmicz, Krystian"]
[WhiteFideId "1119290"]
[BlackFideId "1119125"]
[WhiteElo "2411"]
[BlackElo "2380"]
[Result "1-0"]
[Round "09"]
[TimeControl "180+1"]
[Date "2022.11.30"]
[WhiteClock "0:00:06"]
[BlackClock "0:00:13"]

1. d4 {[%clk 0:03:00]}  b6 {[%clk 0:03:00]} 2. e4 {[%clk 0:02:58]}  Bb7 {[%clk 0:03:00]} 3. Bd3 {[%clk 0:02:58]}  e6 {[%clk 0:02:59]} 4. Nf3 {[%clk 0:02:58]}  c5 {[%clk 0:02:59]} 5. c3 {[%clk 0:02:57]}  Nf6 {[%clk 0:02:55]} 6. e5 {[%clk 0:02:55]}  Nd5 {[%clk 0:02:55]} 7. O-O {[%clk 0:02:55]}  Nc6 {[%clk 0:02:55]} 8. a3 {[%clk 0:02:53]}  d6 {[%clk 0:02:52]} 9. Qe2 {[%clk 0:02:44]}  Be7 {[%clk 0:02:48]} 10. exd6 {[%clk 0:02:28]}  Bxd6 {[%clk 0:02:45]} 11. dxc5 {[%clk 0:02:27]}  Bxc5 {[%clk 0:02:43]} 12. c4 {[%clk 0:02:23]}  Nf6 {[%clk 0:02:39]} 13. Nc3 {[%clk 0:02:13]}  Nd4 {[%clk 0:02:16]} 14. Nxd4 {[%clk 0:02:12]}  Qxd4 {[%clk 0:02:16]} 15. Be3 {[%clk 0:02:04]}  Qe5 {[%clk 0:02:04]} 16. Bxc5 {[%clk 0:01:45]}  Qxc5 {[%clk 0:02:05]} 17. b4 {[%clk 0:01:29]}  Qc6 {[%clk 0:01:54]} 18. f3 {[%clk 0:01:28]}  O-O {[%clk 0:01:53]} 19. Rfd1 {[%clk 0:01:15]}  Rfd8 {[%clk 0:01:53]} 20. Qe5 {[%clk 0:01:01]}  Rd7 {[%clk 0:01:24]} 21. Ne4 {[%clk 0:00:46]}  Rad8 {[%clk 0:01:13]} 22. Nf2 {[%clk 0:00:42]}  h6 {[%clk 0:01:02]} 23. h4 {[%clk 0:00:38]}  Ng4 {[%clk 0:00:51]} 24. Nxg4 {[%clk 0:00:29]}  Rxd3 {[%clk 0:00:51]} 25. Rxd3 {[%clk 0:00:26]}  Rxd3 {[%clk 0:00:51]} 26. Qb8+ {[%clk 0:00:19]}  Kh7 {[%clk 0:00:50]} 27. Ne5 {[%clk 0:00:16]}  Qd6 {[%clk 0:00:44]} 28. Qxd6 {[%clk 0:00:15]}  Rxd6 {[%clk 0:00:44]} 29. Nxf7 {[%clk 0:00:14]}  Rd2 {[%clk 0:00:40]} 30. Rc1 {[%clk 0:00:13]}  Ra2 {[%clk 0:00:31]} 31. c5 {[%clk 0:00:10]}  bxc5 {[%clk 0:00:32]} 32. bxc5 {[%clk 0:00:11]}  Rd2 {[%clk 0:00:19]} 33. c6 {[%clk 0:00:10]}  Bc8 {[%clk 0:00:20]} 34. h5 {[%clk 0:00:08]}  g6 {[%clk 0:00:18]} 35. hxg6+ {[%clk 0:00:06]}  Kxg6 {[%clk 0:00:19]} 36. Ne5+ {[%clk 0:00:07]}  Kf6 {[%clk 0:00:19]} 37. f4 {[%clk 0:00:07]}  Kf5 {[%clk 0:00:19]} 38. Rc4 {[%clk 0:00:06]}  Ra2 {[%clk 0:00:17]} 39. c7 {[%clk 0:00:05]}  Rxa3 {[%clk 0:00:17]} 40. Nf7 {[%clk 0:00:05]}  Ra6 {[%clk 0:00:17]} 41. Nxh6+ {[%clk 0:00:05]}  Kf6 {[%clk 0:00:17]} 42. Ng4+ {[%clk 0:00:04]}  Kf5 {[%clk 0:00:16]} 43. Ne5 {[%clk 0:00:05]}  Rb6 {[%clk 0:00:15]} 44. g4+ {[%clk 0:00:05]}  Kf6 {[%clk 0:00:15]} 45. Kf2 {[%clk 0:00:05]}  a5 {[%clk 0:00:13]} 46. Kg3 {[%clk 0:00:06]}  Rb3+ {[%clk 0:00:14]} 47. Kh4 {[%clk 0:00:06]}  Ke7 {[%clk 0:00:14]} 48. Kg5 {[%clk 0:00:05]}  Kd6 {[%clk 0:00:14]} 49. Rc6+ {[%clk 0:00:06]}  Kd5 {[%clk 0:00:13]} 50. Rc1 {[%clk 0:00:05]}  a4 {[%clk 0:00:14]} 51. Nc6 {[%clk 0:00:04]}  a3 {[%clk 0:00:13]} 52. Ne7+ {[%clk 0:00:05]}  Ke4 {[%clk 0:00:12]} 53. Nxc8 {[%clk 0:00:05]}  Rb5+ {[%clk 0:00:12]} 54. Kf6 {[%clk 0:00:05]}  a2 {[%clk 0:00:13]} 55. Nd6+ {[%clk 0:00:06]} 1-0


[Site "https://www.chess.com"]

[Event "Titled Tuesday Blitz November 29 Late 2022"]
[White "Pap, Gyula"]
[Black "Salem, A.R. Saleh"]
[WhiteFideId "725323"]
[BlackFideId "9301348"]
[WhiteElo "2519"]
[BlackElo "2628"]
[Result "1-0"]
[Round "09"]
[TimeControl "180+1"]
[Date "2022.11.30"]
[WhiteClock "0:00:03"]
[BlackClock "0:00:09"]

1. d4 {[%clk 0:03:00]}  Nf6 {[%clk 0:02:59]} 2. Nf3 {[%clk 0:03:01]}  g6 {[%clk 0:02:59]} 3. Nbd2 {[%clk 0:02:59]}  Bg7 {[%clk 0:02:59]} 4. e4 {[%clk 0:02:59]}  O-O {[%clk 0:02:59]} 5. e5 {[%clk 0:02:56]}  Nd5 {[%clk 0:03:00]} 6. h4 {[%clk 0:02:53]}  c5 {[%clk 0:02:56]} 7. dxc5 {[%clk 0:02:54]}  Nc6 {[%clk 0:02:53]} 8. Nc4 {[%clk 0:02:51]}  Ndb4 {[%clk 0:02:38]} 9. c3 {[%clk 0:02:32]}  Na6 {[%clk 0:02:37]} 10. b4 {[%clk 0:02:33]}  Nc7 {[%clk 0:02:25]} 11. Bg5 {[%clk 0:02:02]}  h6 {[%clk 0:02:13]} 12. Be3 {[%clk 0:02:02]}  d5 {[%clk 0:02:05]} 13. Ncd2 {[%clk 0:02:00]}  Nxe5 {[%clk 0:02:00]} 14. Nxe5 {[%clk 0:02:00]}  Bxe5 {[%clk 0:02:01]} 15. Bxh6 {[%clk 0:02:01]}  Bxc3 {[%clk 0:02:01]} 16. h5 {[%clk 0:01:46]}  g5 {[%clk 0:01:52]} 17. Bxg5 {[%clk 0:01:42]}  Bxb4 {[%clk 0:01:47]} 18. Bd3 {[%clk 0:01:12]}  Na6 {[%clk 0:01:25]} 19. O-O {[%clk 0:01:06]}  Nxc5 {[%clk 0:01:23]} 20. Bc2 {[%clk 0:01:06]}  Qd6 {[%clk 0:01:20]} 21. Re1 {[%clk 0:00:57]}  Re8 {[%clk 0:01:12]} 22. h6 {[%clk 0:00:49]}  Bd7 {[%clk 0:00:53]} 23. Qh5 {[%clk 0:00:43]}  Ba4 {[%clk 0:00:51]} 24. Bxa4 {[%clk 0:00:19]}  Nxa4 {[%clk 0:00:50]} 25. Qg4 {[%clk 0:00:20]}  f5 {[%clk 0:00:21]} 26. Qxf5 {[%clk 0:00:14]}  Nc3 {[%clk 0:00:21]} 27. Re6 {[%clk 0:00:10]}  Ne2+ {[%clk 0:00:18]} 28. Kh1 {[%clk 0:00:07]}  Bc3 {[%clk 0:00:16]} 29. Qg6+ {[%clk 0:00:05]}  Kh8 {[%clk 0:00:16]} 30. Rxd6 {[%clk 0:00:06]}  Rg8 {[%clk 0:00:13]} 31. Qd3 {[%clk 0:00:03]}  Bxa1 {[%clk 0:00:13]} 32. Bxe7 {[%clk 0:00:02]}  Nf4 {[%clk 0:00:09]} 33. Qf5 {[%clk 0:00:03]} 1-0


[Site "https://www.chess.com"]

[Event "Titled Tuesday Blitz November 29 Late 2022"]
[White "Pinheiro, Iung Alicio de O."]
[Black "Foerster-Yialamas, Lucas"]
[WhiteFideId "2104350"]
[BlackFideId "30901774"]
[WhiteElo "2283"]
[BlackElo "2067"]
[Result "1-0"]
[Round "09"]
[TimeControl "180+1"]
[Date "2022.11.30"]
[WhiteClock "0:00:27"]
[BlackClock "0:00:50"]

1. e4 {[%clk 0:02:58]}  e5 {[%clk 0:02:57]} 2. Nf3 {[%clk 0:02:55]}  Nc6 {[%clk 0:02:57]} 3. Bc4 {[%clk 0:02:55]}  Nf6 {[%clk 0:02:56]} 4. Ng5 {[%clk 0:02:55]}  d5 {[%clk 0:02:56]} 5. exd5 {[%clk 0:02:56]}  Na5 {[%clk 0:02:57]} 6. Bb5+ {[%clk 0:02:55]}  c6 {[%clk 0:02:57]} 7. dxc6 {[%clk 0:02:56]}  bxc6 {[%clk 0:02:57]} 8. Be2 {[%clk 0:02:52]}  Qd5 {[%clk 0:02:55]} 9. d3 {[%clk 0:02:28]}  h6 {[%clk 0:02:53]} 10. Bf3 {[%clk 0:02:26]}  Qd6 {[%clk 0:02:43]} 11. Ne4 {[%clk 0:02:25]}  Nxe4 {[%clk 0:02:43]} 12. Bxe4 {[%clk 0:02:22]}  f5 {[%clk 0:02:43]} 13. Bf3 {[%clk 0:02:20]}  Ba6 {[%clk 0:02:38]} 14. O-O {[%clk 0:02:14]}  e4 {[%clk 0:02:38]} 15. Re1 {[%clk 0:02:08]}  O-O-O {[%clk 0:02:36]} 16. dxe4 {[%clk 0:01:56]}  fxe4 {[%clk 0:02:11]} 17. Qxd6 {[%clk 0:01:47]}  Bxd6 {[%clk 0:02:08]} 18. Bxe4 {[%clk 0:01:47]}  Bb4 {[%clk 0:01:57]} 19. Nc3 {[%clk 0:01:40]}  Bxc3 {[%clk 0:01:56]} 20. bxc3 {[%clk 0:01:41]}  Nc4 {[%clk 0:01:52]} 21. Bf4 {[%clk 0:01:40]}  Rhf8 {[%clk 0:01:50]} 22. Bg3 {[%clk 0:01:37]}  Bb7 {[%clk 0:01:44]} 23. a4 {[%clk 0:01:23]}  g5 {[%clk 0:01:41]} 24. a5 {[%clk 0:01:21]}  a6 {[%clk 0:01:39]} 25. Bd3 {[%clk 0:01:20]}  Nd6 {[%clk 0:01:35]} 26. Rab1 {[%clk 0:01:14]}  Nb5 {[%clk 0:01:33]} 27. Re7 {[%clk 0:01:03]}  Rd7 {[%clk 0:01:28]} 28. Rxd7 {[%clk 0:01:03]}  Kxd7 {[%clk 0:01:28]} 29. c4 {[%clk 0:01:03]}  Nd6 {[%clk 0:01:13]} 30. Bxd6 {[%clk 0:01:03]}  Kxd6 {[%clk 0:01:14]} 31. Rxb7 {[%clk 0:01:02]}  Kc5 {[%clk 0:01:11]} 32. Rb6 {[%clk 0:01:00]}  Re8 {[%clk 0:01:07]} 33. Kf1 {[%clk 0:00:58]}  h5 {[%clk 0:01:04]} 34. c3 {[%clk 0:00:56]}  g4 {[%clk 0:00:59]} 35. Rxa6 {[%clk 0:00:55]}  h4 {[%clk 0:01:00]} 36. g3 {[%clk 0:00:47]}  h3 {[%clk 0:00:58]} 37. Bf5 {[%clk 0:00:37]}  Kxc4 {[%clk 0:00:55]} 38. Rxc6+ {[%clk 0:00:34]}  Kb5 {[%clk 0:00:54]} 39. Rg6 {[%clk 0:00:33]}  Kc4 {[%clk 0:00:51]} 40. Bxg4 {[%clk 0:00:28]}  Kxc3 {[%clk 0:00:51]} 41. a6 {[%clk 0:00:28]}  Kd2 {[%clk 0:00:51]} 42. Bxh3 {[%clk 0:00:28]}  Ra8 {[%clk 0:00:51]} 43. Bg2 {[%clk 0:00:26]}  Re8 {[%clk 0:00:51]} 44. Bb7 {[%clk 0:00:26]}  Rb8 {[%clk 0:00:47]} 45. a7 {[%clk 0:00:26]}  Rxb7 {[%clk 0:00:48]} 46. a8=Q {[%clk 0:00:26]}  Rb1+ {[%clk 0:00:49]} 47. Kg2 {[%clk 0:00:26]}  Rb3 {[%clk 0:00:49]} 48. Qd5+ {[%clk 0:00:26]}  Rd3 {[%clk 0:00:49]} 49. Qxd3+ {[%clk 0:00:26]}  Kxd3 {[%clk 0:00:50]} 50. Re6 {[%clk 0:00:27]} 1-0


[Site "https://www.chess.com"]

[Event "Titled Tuesday Blitz November 29 Late 2022"]
[White "Pranav, V"]
[Black "Donchenko, Alexander"]
[WhiteFideId "25060783"]
[BlackFideId "24603295"]
[WhiteElo "2430"]
[BlackElo "2572"]
[Result "1-0"]
[Round "09"]
[TimeControl "180+1"]
[Date "2022.11.30"]
[WhiteClock "0:01:05"]
[BlackClock "0:00:29"]

1. e4 {[%clk 0:03:00]}  c6 {[%clk 0:02:59]} 2. Nc3 {[%clk 0:02:59]}  d5 {[%clk 0:03:00]} 3. Qe2 {[%clk 0:02:59]}  dxe4 {[%clk 0:02:58]} 4. Nxe4 {[%clk 0:02:58]}  Bf5 {[%clk 0:02:58]} 5. d3 {[%clk 0:02:59]}  e6 {[%clk 0:02:58]} 6. g4 {[%clk 0:02:59]}  Bg6 {[%clk 0:02:58]} 7. Nf3 {[%clk 0:02:58]}  Nd7 {[%clk 0:02:56]} 8. h4 {[%clk 0:02:58]}  h5 {[%clk 0:02:56]} 9. g5 {[%clk 0:02:58]}  Nc5 {[%clk 0:02:51]} 10. Bh3 {[%clk 0:02:51]}  Bxe4 {[%clk 0:02:47]} 11. dxe4 {[%clk 0:02:51]}  Ne7 {[%clk 0:02:47]} 12. Bd2 {[%clk 0:02:51]}  Ng6 {[%clk 0:02:46]} 13. O-O-O {[%clk 0:02:39]}  Qc7 {[%clk 0:02:46]} 14. Qc4 {[%clk 0:02:39]}  Be7 {[%clk 0:02:38]} 15. Be3 {[%clk 0:02:38]}  b5 {[%clk 0:02:34]} 16. Qc3 {[%clk 0:02:38]}  Nxe4 {[%clk 0:02:31]} 17. Qxg7 {[%clk 0:02:37]}  Bf8 {[%clk 0:02:19]} 18. Qd4 {[%clk 0:02:33]}  Nd6 {[%clk 0:02:14]} 19. Rhe1 {[%clk 0:02:27]}  Rd8 {[%clk 0:02:10]} 20. Bf4 {[%clk 0:02:16]}  c5 {[%clk 0:01:58]} 21. Qc3 {[%clk 0:02:03]}  Nxf4 {[%clk 0:01:46]} 22. Qxh8 {[%clk 0:02:02]}  Nxh3 {[%clk 0:01:46]} 23. g6 {[%clk 0:02:03]}  Nf5 {[%clk 0:01:37]} 24. Qf6 {[%clk 0:01:30]}  Rxd1+ {[%clk 0:01:28]} 25. Rxd1 {[%clk 0:01:31]}  fxg6 {[%clk 0:00:51]} 26. Qxe6+ {[%clk 0:01:26]}  Ne7 {[%clk 0:00:42]} 27. Qxh3 {[%clk 0:01:24]}  Qf4+ {[%clk 0:00:40]} 28. Kb1 {[%clk 0:01:23]}  Nf5 {[%clk 0:00:41]} 29. Ng5 {[%clk 0:01:21]}  Be7 {[%clk 0:00:39]} 30. Qg2 {[%clk 0:01:11]}  Bxg5 {[%clk 0:00:37]} 31. hxg5 {[%clk 0:01:07]}  Nd4 {[%clk 0:00:35]} 32. Re1+ {[%clk 0:01:06]}  Kd7 {[%clk 0:00:31]} 33. Qb7+ {[%clk 0:01:05]}  Kd6 {[%clk 0:00:29]} 34. Qb8+ {[%clk 0:01:05]} 1-0


[Site "https://www.chess.com"]

[Event "Titled Tuesday Blitz November 29 Late 2022"]
[White "Preotu, Razvan"]
[Black "Aldokhin, Ivan"]
[WhiteFideId "2613280"]
[BlackFideId "24115720"]
[WhiteElo "2407"]
[BlackElo "2313"]
[Result "0-1"]
[Round "09"]
[TimeControl "180+1"]
[Date "2022.11.30"]
[WhiteClock "0:00:04"]
[BlackClock "0:00:04"]

1. e4 {[%clk 0:03:00]}  c5 {[%clk 0:03:00]} 2. Nf3 {[%clk 0:03:00]}  e6 {[%clk 0:03:00]} 3. c3 {[%clk 0:03:00]}  Nf6 {[%clk 0:03:00]} 4. e5 {[%clk 0:03:00]}  Nd5 {[%clk 0:03:00]} 5. d4 {[%clk 0:03:01]}  cxd4 {[%clk 0:03:00]} 6. cxd4 {[%clk 0:03:02]}  d6 {[%clk 0:03:00]} 7. Bc4 {[%clk 0:03:01]}  Nb6 {[%clk 0:02:53]} 8. Bd3 {[%clk 0:03:00]}  Nc6 {[%clk 0:02:41]} 9. O-O {[%clk 0:02:59]}  Be7 {[%clk 0:02:38]} 10. Nc3 {[%clk 0:02:58]}  d5 {[%clk 0:02:34]} 11. b3 {[%clk 0:02:39]}  Bd7 {[%clk 0:02:33]} 12. Be3 {[%clk 0:02:39]}  Rc8 {[%clk 0:02:32]} 13. Ne2 {[%clk 0:01:56]}  Nb4 {[%clk 0:02:25]} 14. Bb1 {[%clk 0:01:55]}  Bb5 {[%clk 0:02:16]} 15. a3 {[%clk 0:01:54]}  Nc6 {[%clk 0:02:16]} 16. Re1 {[%clk 0:01:52]}  Ba6 {[%clk 0:01:59]} 17. Nf4 {[%clk 0:01:50]}  Na5 {[%clk 0:01:51]} 18. Bd2 {[%clk 0:01:43]}  Nd7 {[%clk 0:01:47]} 19. h4 {[%clk 0:01:28]}  Qb6 {[%clk 0:01:34]} 20. Bxa5 {[%clk 0:01:20]}  Qxa5 {[%clk 0:01:33]} 21. Ng5 {[%clk 0:01:21]}  Nf8 {[%clk 0:01:20]} 22. b4 {[%clk 0:00:59]}  Bxb4 {[%clk 0:01:10]} 23. axb4 {[%clk 0:00:59]}  Qxa1 {[%clk 0:01:09]} 24. Nxf7 {[%clk 0:01:00]}  Kxf7 {[%clk 0:00:41]} 25. Qh5+ {[%clk 0:00:23]}  Kg8 {[%clk 0:00:30]} 26. Nxe6 {[%clk 0:00:05]}  Nxe6 {[%clk 0:00:22]} 27. Qg4 {[%clk 0:00:06]}  Re8 {[%clk 0:00:08]} 28. Bxh7+ {[%clk 0:00:06]}  Rxh7 {[%clk 0:00:08]} 29. Rxa1 {[%clk 0:00:06]}  Rh6 {[%clk 0:00:05]} 30. h5 {[%clk 0:00:06]}  Rf8 {[%clk 0:00:05]} 31. g3 {[%clk 0:00:06]}  Kh7 {[%clk 0:00:05]} 32. b5 {[%clk 0:00:04]}  Bxb5 {[%clk 0:00:04]} 33. Rxa7 {[%clk 0:00:05]}  Bc6 {[%clk 0:00:05]} 34. Kg2 {[%clk 0:00:03]}  Rf7 {[%clk 0:00:05]} 35. Ra8 {[%clk 0:00:03]}  Rf8 {[%clk 0:00:03]} 36. Rxf8 {[%clk 0:00:03]}  Nxf8 {[%clk 0:00:04]} 37. Qf5+ {[%clk 0:00:04]}  Kg8 {[%clk 0:00:03]} 38. g4 {[%clk 0:00:04]}  Bd7 {[%clk 0:00:04]} 39. Qf3 {[%clk 0:00:04]}  Ne6 {[%clk 0:00:03]} 40. Qxd5 {[%clk 0:00:04]}  Bc6 {[%clk 0:00:04]} 41. Qxc6 {[%clk 0:00:03]}  bxc6 {[%clk 0:00:05]} 42. Kg3 {[%clk 0:00:03]}  g5 {[%clk 0:00:05]} 43. f4 {[%clk 0:00:04]}  Rh7 {[%clk 0:00:02]} 44. fxg5 {[%clk 0:00:01]}  Nxg5 {[%clk 0:00:03]} 45. Kf4 {[%clk 0:00:02]}  Ne6+ {[%clk 0:00:03]} 46. Ke4 {[%clk 0:00:03]}  Rg7 {[%clk 0:00:03]} 47. h6 {[%clk 0:00:03]}  Rxg4+ {[%clk 0:00:03]} 48. Kf5 {[%clk 0:00:04]}  Rxd4 {[%clk 0:00:04]} 49. Kxe6 {[%clk 0:00:04]}  Kh7 {[%clk 0:00:04]} 0-1


[Site "https://www.chess.com"]